bitfinex/quotes_ETHUSD_20251213
["timestamp","ask_amount","ask_price","bid_price","bid_amount"]
[1765590509601,0.512,3082.2,3081.4,0.98933076]
[1765590509807,0.4869,3082.1,3081.3,0.607204]
[1765590510025,0.4869,3082.1,3081.3,0.405504]
[1765590510610,0.4869,3082.1,3081.4,3.24521598]
[1765590510923,3.73151399,3082.1,3081.4,3.44691598]
[1765590511117,3.73151399,3082.1,3081.5,0.2017]
[1765590511423,3.24461399,3082.1,3082.0,0.2017]
[1765590511590,0.512,3082.1,3082.0,0.2017]
[1765590512117,3.75654105,3082.1,3082.0,0.2017]
[1765590512523,3.75654105,3082.1,3081.6,0.2017]
[1765590513428,0.4869,3082.0,3081.4,6.01104396]
[1765590513620,0.4869,3082.0,3081.4,7.24309316]
[1765590513824,0.4869,3082.0,3081.4,3.99787718]
[1765590514034,0.4869,3082.0,3081.4,1.2320492]
[1765590514324,0.4869,3082.0,3081.4,0.78217529]
[1765590514920,0.4869,3082.0,3081.4,3.44696855]
[1765590515095,3.75654105,3082.1,3081.4,3.24526855]
[1765590515296,3.75654105,3082.1,3081.5,0.2017]
[1765590517446,3.75665766,3082.0,3081.5,0.2017]
[1765590517613,0.512,3082.0,3081.6,0.34469686]
[1765590518135,0.512,3082.0,3081.6,0.2017]
[1765590518914,3.75665874,3082.0,3081.6,0.2017]
[1765590519965,0.512,3082.0,3081.6,0.2017]
[1765590522213,3.24457083,3082.1,3081.6,0.2017]
[1765590522420,0.512,3081.9,3081.6,0.2017]
[1765590522747,0.512,3081.9,3081.6,0.54638515]
[1765590523045,0.512,3081.9,3081.8,0.2017]
[1765590529753,3.75675161,3081.9,3081.8,0.2017]
[1765590529944,0.512,3081.9,3081.8,0.2017]
[1765590532234,0.512,3082.0,3081.8,0.2017]
[1765590532438,0.512,3082.0,3081.5,3.24516929]
[1765590532638,0.512,3082.0,3081.6,0.2017]
[1765590536257,0.512,3082.0,3081.9,0.2017]
[1765590540654,3.24444118,3082.2,3081.9,0.4034]
[1765590540958,0.512,3082.0,3081.9,0.2017]
[1765590541123,3.24444118,3082.2,3081.6,3.24502279]
[1765590541328,0.512,3082.2,3082.1,0.2017]
[1765590541524,3.24437053,3082.3,3082.1,0.2017]
[1765590541727,3.24437053,3082.3,3082.2,0.2017]
[1765590541930,3.75637053,3082.3,3082.2,0.4034]
[1765590542161,3.75637053,3082.3,3082.2,0.2017]
[1765590542661,0.512,3082.3,3082.2,0.2017]
[1765590542959,13.3319895,3082.5,3082.2,0.2017]
[1765590543258,13.3319895,3082.5,3081.5,0.58047529]
[1765590543259,15.20725845,3082.5,3081.6,0.607204]
[1765590543458,13.3319895,3082.5,3081.6,0.607204]
[1765590543661,10.08780679,3082.5,3082.4,0.2017]
[1765590544035,0.001,3082.6,3082.4,0.2017]
[1765590544247,0.001,3082.6,3082.5,0.2017]
[1765590544453,0.001,3082.6,3082.5,0.4034]
[1765590545048,0.001,3082.6,3082.5,0.2017]
[1765590545247,0.001,3082.6,3082.5,3.64752003]
[1765590545454,0.001,3082.6,3082.5,4.33669913]
[1765590546848,0.001,3082.6,3082.5,4.74220313]
[1765590548035,0.001,3082.6,3082.5,5.45254876]
[1765590548982,0.001,3082.6,3082.5,1.0925791]
[1765590549279,0.001,3082.6,3082.5,4.33669913]
[1765590555950,0.001,3082.6,3082.5,4.36914033]
[1765590556153,0.001,3082.6,3082.5,4.77464433]
[1765590556454,0.001,3082.6,3082.5,4.74220313]
[1765590558880,0.001,3082.6,3082.5,5.32267842]
[1765590566080,0.001,3082.6,3082.5,8.08579649]
[1765590568882,0.001,3082.6,3082.5,5.12097842]
[1765590569589,0.4759,3082.6,3082.5,1.26965439]
[1765590569787,0.9347,3082.6,3082.5,0.58047529]
[1765590570089,0.4759,3082.6,3082.5,0.58047529]
[1765590573066,0.001,3082.6,3082.5,4.02629532]
[1765590573473,0.001,3082.6,3082.5,4.43179932]
[1765590574573,0.001,3082.6,3082.5,4.63349932]
[1765590574968,0.001,3082.6,3082.5,5.74878352]
[1765590575172,0.001,3082.6,3082.5,5.54708352]
[1765590576494,0.001,3082.6,3082.5,5.74878352]
[1765590576662,0.001,3082.6,3082.5,2.30296349]
[1765590577065,0.001,3082.6,3082.5,5.54708352]
[1765590577306,0.001,3082.6,3082.5,5.74878352]
[1765590577610,0.001,3082.6,3082.5,5.54708352]
[1765590578268,0.9347,3082.6,3082.1,0.97404653]
[1765590578484,0.4749,3082.2,3082.1,0.97404653]
[1765590578810,0.4749,3082.2,3081.3,0.061]
[1765590579019,0.4588,3082.1,3081.4,0.405504]
[1765590579311,3.24464633,3082.0,3081.4,3.65077746]
[1765590579607,3.24464633,3082.0,3081.5,0.37117775]
[1765590579771,0.1829,3081.9,3081.5,0.37117775]
[1765590579968,0.6417,3081.9,3081.5,0.37117775]
[1765590580185,0.6417,3081.9,3081.6,0.405504]
[1765590580362,0.4588,3081.8,3081.6,0.405504]
[1765590580565,0.1829,3081.9,3081.6,0.80769952]
[1765590580917,0.4588,3082.1,3081.8,0.2017]
[1765590584800,3.34359336,3083.0,3081.9,0.405504]
[1765590585100,3.24415301,3082.5,3082.1,0.2017]
[1765590585403,0.4598,3082.6,3081.9,3.16862207]
[1765590585404,3.70384412,3082.6,3081.9,3.16862207]
[1765590585575,0.4598,3082.6,3082.0,0.96583015]
[1765590586093,0.4598,3082.6,3082.1,0.405504]
[1765590586494,3.70383281,3082.6,3082.1,0.405504]
[1765590587099,3.24503281,3082.6,3082.1,0.405504]
[1765590587290,0.4588,3082.5,3082.1,0.405504]
[1765590587519,0.4588,3082.5,3082.1,0.92514724]
[1765590588075,0.4588,3082.5,3082.1,4.16967611]
[1765590592309,0.4817,3082.2,3082.1,0.92514724]
[1765590593095,0.4897,3082.4,3082.1,0.92514724]
[1765590593319,0.4897,3082.4,3082.1,4.16967153]
[1765590593490,0.4897,3082.4,3082.2,0.41696715]
[1765590595401,0.4897,3082.4,3082.2,3.6613834]
[1765590595596,0.001,3082.6,3082.3,0.58047529]
[1765590596132,0.4907,3082.6,3082.3,0.58047529]
[1765590596783,0.001,3082.6,3082.5,0.2017]
[1765590596980,0.001,3082.6,3082.5,0.55622934]
[1765590597217,0.001,3082.6,3082.5,1.16343334]
[1765590597396,0.001,3082.6,3082.5,0.96173334]
[1765590597596,0.001,3082.6,3082.5,4.20585337]
[1765590598829,0.9724,3082.6,3081.5,0.58047529]
[1765590599019,0.4817,3082.5,3081.5,2.76340615]
[1765590599327,0.9714,3082.5,3081.6,0.58047529]
[1765590599506,0.9714,3082.5,3081.9,0.58047529]
[1765590599507,4.21562023,3082.5,3081.9,0.58047529]
[1765590599711,0.4897,3082.4,3082.0,0.58047529]
[1765590599906,4.21938825,3082.6,3082.0,0.58047529]
[1765590599907,0.001,3082.6,3082.1,3.16891015]
[1765590600111,0.001,3082.6,3082.3,0.2017]
[1765590600317,0.4907,3082.6,3082.3,0.2017]
[1765590601637,0.001,3082.6,3082.3,3.44600484]
[1765590601809,0.001,3082.6,3082.4,0.405504]
[1765590602412,0.001,3082.6,3082.5,0.2017]
[1765590602618,0.001,3082.6,3082.5,3.57231015]
[1765590602819,0.001,3082.6,3082.5,3.98352664]
[1765590603137,0.001,3082.6,3082.5,4.18522664]
[1765590603438,0.001,3082.6,3082.5,5.06390314]
[1765590604435,0.001,3082.6,3082.5,8.30802317]
[1765590608225,0.001,3082.6,3082.5,38.30802317]
[1765590608549,0.001,3082.6,3082.5,34.28137817]
[1765590609319,0.001,3082.6,3082.5,37.17463358]
[1765590609661,0.001,3082.6,3082.5,41.20127858]
[1765590612014,0.001,3082.6,3082.5,38.43659456]
[1765590614010,0.001,3082.6,3082.5,19.26530456]
[1765590614444,0.001,3082.6,3082.5,8.43659456]
[1765590614633,0.001,3082.6,3082.5,27.43021556]
[1765590615231,0.001,3082.6,3082.5,27.18267056]
[1765590615551,0.001,3082.6,3082.5,28.27867056]
[1765590616159,0.001,3082.6,3082.5,5.06726228]
[1765590616344,0.001,3082.6,3082.5,5.57926228]
[1765590616518,0.001,3082.6,3082.5,5.98476628]
[1765590616718,0.001,3082.6,3082.5,33.28117948]
[1765590616957,0.001,3082.6,3082.5,33.24873828]
[1765590617449,0.001,3082.6,3082.5,36.18646628]
[1765590617618,0.001,3082.6,3082.5,38.94859456]
[1765590620350,0.001,3082.6,3082.5,36.18646628]
[1765590620555,0.001,3082.6,3082.5,34.81834228]
[1765590621351,0.001,3082.6,3082.5,29.81884728]
[1765590621558,0.001,3082.6,3082.5,36.18646628]
[1765590622733,0.001,3082.6,3082.5,35.52882328]
[1765590623037,0.001,3082.6,3082.5,38.29095156]
[1765590623650,0.001,3082.6,3082.5,38.94859456]
[1765590624229,0.001,3082.6,3082.5,11.83692256]
[1765590624450,0.001,3082.6,3082.5,11.63522256]
[1765590625461,0.001,3082.6,3082.5,11.83692256]
[1765590627276,0.001,3082.6,3082.5,38.94859456]
[1765590628880,0.001,3082.6,3082.5,32.98928856]
[1765590629177,0.001,3082.6,3082.5,8.94859456]
[1765590629358,0.001,3082.6,3082.5,36.50984056]
[1765590629558,0.001,3082.6,3082.5,20.81319256]
[1765590630283,0.001,3082.6,3082.5,32.22409956]
[1765590630772,0.001,3082.6,3082.5,21.80556256]
[1765590631382,0.001,3082.6,3082.5,20.70956256]
[1765590631881,0.4567,3082.6,3082.5,5.78306628]
[1765590632049,0.4567,3082.6,3082.5,8.54519456]
[1765590632450,0.4567,3082.6,3082.5,8.54584373]
[1765590636882,0.001,3082.6,3082.5,8.54584373]
[1765590637083,0.001,3082.6,3082.5,8.74754373]
[1765590638071,0.001,3082.6,3082.5,41.71202118]
[1765590638384,0.001,3082.6,3082.5,38.29367273]
[1765590639058,0.001,3082.6,3082.5,38.91421673]
[1765590639252,0.001,3082.6,3082.5,38.07221673]
[1765590639852,0.001,3082.6,3082.5,17.05719273]
[1765590640057,0.001,3082.6,3082.5,27.59964873]
[1765590640486,0.001,3082.6,3082.5,24.86668073]
[1765590641089,0.001,3082.6,3082.5,28.28205173]
[1765590641284,0.001,3082.6,3082.5,25.54491673]
[1765590641490,0.001,3082.6,3082.5,24.06754573]
[1765590642286,0.001,3082.6,3082.5,37.65518973]
[1765590642487,0.001,3082.6,3082.5,30.81878673]
[1765590643092,0.001,3082.6,3082.5,31.05518973]
[1765590643260,0.001,3082.6,3082.5,30.17781873]
[1765590644086,0.001,3082.6,3082.5,8.74754373]
[1765590644295,0.001,3082.6,3082.5,31.05518973]
[1765590645188,0.001,3082.6,3082.5,33.77974173]
[1765590645489,0.001,3082.6,3082.5,30.81878673]
[1765590647098,0.001,3082.6,3082.5,29.73104173]
[1765590647391,0.001,3082.6,3082.5,36.91116373]
[1765590648090,0.001,3082.6,3082.5,31.34224873]
[1765590648291,0.001,3082.6,3082.5,28.43574173]
[1765590648596,0.001,3082.6,3082.5,26.81384173]
[1765590649403,0.001,3082.6,3082.5,27.80984173]
[1765590650365,0.001,3082.6,3082.5,8.74754373]
[1765590650564,0.001,3082.6,3082.5,33.80700873]
[1765590651196,0.001,3082.6,3082.5,30.78005373]
[1765590651495,0.001,3082.6,3082.5,31.01645673]
[1765590651662,0.001,3082.6,3082.5,28.13433373]
[1765590651867,0.001,3082.6,3082.5,17.94188173]
[1765590652068,0.001,3082.6,3082.5,18.14358173]
[1765590652497,0.001,3082.6,3082.5,22.00196073]
[1765590653598,0.001,3082.6,3082.5,23.20382373]
[1765590653900,0.001,3082.6,3082.5,22.87933173]
[1765590654502,0.61344559,3082.9,3082.6,0.98597929]
[1765590654680,0.61344559,3082.9,3082.7,0.35455814]
[1765590655171,0.61344559,3082.9,3082.7,0.96800373]
[1765590656397,0.61344559,3082.9,3082.8,3.82427962]
[1765590656790,1.10154559,3082.9,3082.8,3.82427962]
[1765590657674,1.10154559,3082.9,3082.8,0.98597929]
[1765590660218,1.10154559,3082.9,3082.8,4.22978362]
[1765590661515,1.10154559,3082.9,3082.8,0.405504]
[1765590671229,1.10154559,3082.9,3082.6,0.97397379]
[1765590671420,0.4881,3082.7,3082.4,0.58047529]
[1765590671596,0.4881,3082.5,3082.4,3.64972927]
[1765590671939,0.4881,3082.5,3082.4,5.01702826]
[1765590672259,0.4633,3082.7,3082.5,0.98597929]
[1765590672901,0.4881,3082.6,3082.5,0.98597929]
[1765590673101,0.4881,3082.6,3082.5,4.23009932]
[1765590673302,0.9514,3082.6,3082.5,4.23009932]
[1765590673704,0.9514,3082.6,3082.5,0.98597929]
[1765590674038,0.9514,3082.6,3082.5,4.23009932]
[1765590674214,0.9514,3082.6,3082.5,0.98597929]
[1765590675838,0.9514,3082.6,3082.5,4.23009932]
[1765590677034,0.61344559,3082.9,3082.6,0.58047529]
[1765590677409,0.4881,3082.7,3082.6,0.58047529]
[1765590677605,0.4881,3082.7,3082.6,0.98597929]
[1765590677832,0.9514,3082.7,3082.6,4.22999408]
[1765590679536,0.4881,3082.7,3082.6,4.22999408]
[1765590679706,0.15014559,3082.9,3082.7,3.82436608]
[1765590680038,0.61344559,3082.9,3082.7,3.82436608]
[1765590680236,0.4881,3082.8,3082.7,3.82436608]
[1765590680423,0.4881,3082.8,3082.7,0.58047529]
[1765590680628,0.9436,3082.8,3082.7,0.58047529]
[1765590681323,0.9436,3082.8,3082.7,3.82438484]
[1765590683941,0.9436,3082.8,3082.7,4.22988884]
[1765590684121,0.9436,3082.8,3082.7,5.29420272]
[1765590684316,0.4881,3082.8,3082.7,5.29420272]
[1765590687244,0.4881,3082.8,3082.7,2.05029317]
[1765590688349,0.9436,3082.8,3082.7,5.29420272]
[1765590688550,0.9436,3082.8,3082.7,4.22988884]
[1765590689243,0.15014559,3082.9,3082.7,4.22988884]
[1765590689443,0.15014559,3082.9,3082.8,0.405504]
[1765590689951,1.10044559,3082.9,3082.8,0.405504]
[1765590690719,0.9503,3082.9,3082.8,3.64930833]
[1765590691046,0.4948,3082.9,3082.8,3.64930833]
[1765590691229,0.4948,3082.9,3082.8,0.405504]
[1765590691430,0.4948,3082.9,3082.8,3.64930833]
[1765590691631,0.4948,3082.9,3082.8,0.405504]
[1765590693738,0.4948,3082.9,3082.8,3.64930833]
[1765590694758,0.4948,3082.9,3082.8,0.405504]
[1765590699242,0.9503,3082.9,3082.8,0.405504]
[1765590700174,0.4948,3082.9,3082.8,0.405504]
[1765590702760,0.001,3083.2,3082.8,0.643004]
[1765590702941,0.4555,3083.1,3082.8,3.88678823]
[1765590703350,0.4555,3083.1,3082.8,0.643004]
[1765590704969,0.4555,3083.1,3082.8,0.405504]
[1765590705671,0.4948,3082.9,3082.8,0.405504]
[1765590705871,0.6797,3082.9,3082.7,0.405504]
[1765590706170,0.9503,3082.8,3082.7,0.405504]
[1765590707570,0.9503,3082.8,3082.7,0.98597929]
[1765590707734,0.1849,3082.9,3082.7,4.22988884]
[1765590707940,0.4565,3083.2,3082.8,0.2375]
[1765590708367,0.4948,3082.9,3082.7,0.98597929]
[1765590708873,0.9503,3082.9,3082.7,0.98597929]
[1765590710978,0.001,3083.2,3082.8,0.2375]
[1765590711148,0.001,3083.2,3082.9,0.405504]
[1765590711469,0.001,3083.2,3083.1,3.00045176]
[1765590712572,0.001,3083.2,3083.1,6.64944445]
[1765590715744,0.4885,3083.2,3083.1,6.41194445]
[1765590716279,0.4885,3083.2,3083.1,0.405504]
[1765590716577,0.9733,3083.2,3083.1,3.16845576]
[1765590726888,0.4885,3083.2,3083.1,3.16845576]
[1765590727187,0.4885,3083.2,3083.1,3.9165573]
[1765590727891,0.4885,3083.2,3083.1,4.4050573]
[1765590728189,0.9733,3083.2,3083.1,3.65695576]
[1765590728981,0.9733,3083.2,3083.1,3.65624564]
[1765590729390,0.4885,3083.2,3083.1,3.65624564]
[1765590733888,0.4885,3083.2,3083.1,0.894004]
[1765590738869,0.9733,3083.2,3082.9,0.405504]
[1765590739187,0.4875,3083.0,3082.9,1.37947779]
[1765590739585,0.9723,3083.0,3082.9,1.37947779]
[1765590742407,0.9723,3083.0,3082.9,0.405504]
[1765590742804,0.9723,3083.0,3082.9,1.37947779]
[1765590744913,0.9723,3083.0,3082.9,5.20365219]
[1765590745797,0.9723,3083.0,3082.9,1.95995308]
[1765590748315,0.9723,3083.0,3082.9,5.20365219]
[1765590750884,0.9723,3083.0,3082.9,3.8241744]
[1765590751833,0.001,3083.2,3083.0,0.58047529]
[1765590752110,0.4631,3083.2,3083.0,0.58047529]
[1765590752417,0.4631,3083.2,3083.0,3.24358288]
[1765590752909,0.4763,3083.1,3083.0,3.82405817]
[1765590754017,0.4763,3083.1,3083.0,0.58047529]
[1765590754505,0.9384,3083.1,3083.0,0.58047529]
[1765590755394,0.9384,3083.1,3083.0,3.82406919]
[1765590755915,0.9384,3083.1,3083.0,0.58047529]
[1765590758360,0.001,3083.2,3083.0,1.4895926]
[1765590758512,0.001,3083.4,3083.3,0.98597929]
[1765590758691,3.93646213,3085.0,3084.0,0.405504]
[1765590758892,3.93646213,3085.0,3084.0,3.98564355]
[1765590759192,0.4631,3084.7,3084.0,4.35295572]
[1765590759503,0.001,3084.7,3084.0,4.83945129]
[1765590759812,0.4621,3084.6,3084.0,4.83945129]
[1765590760818,0.4621,3084.6,3084.0,8.08199344]
[1765590761120,0.4621,3084.6,3084.0,8.07988925]
[1765590762324,0.001,3084.7,3084.0,8.07988925]
[1765590762526,0.4631,3084.5,3084.0,8.07988925]
[1765590768625,0.4631,3084.5,3084.0,7.84238925]
[1765590768924,0.001,3084.5,3084.0,8.07988925]
[1765590772238,0.4611,3084.5,3084.0,8.07988925]
[1765590774597,0.9426,3084.1,3084.0,4.35833361]
[1765590774805,0.9426,3084.1,3083.6,6.00302063]
[1765590775105,0.1037,3083.9,3083.6,6.00302063]
[1765590775729,0.1037,3083.9,3083.6,6.13285471]
[1765590776237,0.1037,3083.9,3083.6,6.00302063]
[1765590776451,0.001,3084.1,3083.7,0.4611]
[1765590776601,0.001,3084.1,3082.6,2.76006007]
[1765590776602,3.24264729,3083.9,3082.6,2.76006007]
[1765590776909,0.1144,3082.9,3082.8,0.58047529]
[1765590777308,0.5745,3082.9,3082.8,0.58047529]
[1765590777633,0.5745,3082.9,3082.8,0.98597929]
[1765590777815,0.1144,3082.9,3082.8,0.98597929]
[1765590778440,0.1144,3082.9,3082.7,0.83626473]
[1765590778613,0.1436,3082.8,3082.2,2.76006007]
[1765590778817,3.2435989,3083.0,3082.3,0.4601]
[1765590779728,0.0026,3082.4,3082.3,0.4601]
[1765590780049,0.0026,3082.4,3082.3,3.70443053]
[1765590780521,0.0026,3082.4,3082.3,4.28490582]
[1765590780720,0.512,3083.0,3082.4,0.58047529]
[1765590780958,3.24349491,3083.1,3082.5,2.76006007]
[1765590781125,4.42986398,3083.1,3082.5,2.76006007]
[1765590781326,0.0026,3082.6,3082.5,2.76006007]
[1765590781525,0.0026,3082.6,3082.3,3.70443053]
[1765590781849,3.75549491,3083.1,3082.2,0.27600601]
[1765590781850,0.0026,3082.4,3082.2,0.27600601]
[1765590782160,0.0026,3082.3,3082.1,4.79906532]
[1765590782471,3.24380433,3082.8,3082.1,4.79906532]
[1765590782472,0.512,3082.4,3082.1,1.55461354]
[1765590782636,0.512,3082.4,3081.6,0.002]
[1765590782637,0.2569,3082.2,3081.6,0.002]
[1765590782968,0.2799,3081.7,3081.6,0.002]
[1765590786251,0.0916,3082.2,3081.6,2.11610794]
[1765590786452,0.0916,3082.2,3081.8,2.76006007]
[1765590786955,0.2674,3081.9,3081.8,2.76006007]
[1765590791453,0.513,3082.7,3081.8,10.58777787]
[1765590791622,0.2799,3082.6,3082.2,2.76006007]
[1765590792154,0.2674,3082.3,3082.2,2.76006007]
[1765590793345,0.2674,3082.3,3082.2,2.76374811]
[1765590795930,0.2674,3082.3,3082.2,2.76376404]
[1765590799659,3.51173053,3082.3,3082.2,2.76376404]
[1765590800537,0.2674,3082.3,3082.2,2.76376404]
[1765590808868,0.0028,3082.3,3082.2,2.76376404]
[1765590811179,0.0028,3082.3,3081.6,0.002]
[1765590811180,0.6073928,3082.3,3081.6,0.002]
[1765590811366,0.0054,3081.7,3081.6,0.002]
[1765590822383,0.513,3082.0,3081.8,2.76376404]
[1765590822677,0.2674,3081.9,3081.8,2.76376404]
[1765590823578,3.84884871,3082.4,3081.8,3.22406404]
[1765590823777,4.55814781,3082.4,3082.0,3.22406404]
[1765590824152,4.04514781,3082.4,3082.0,3.22406404]
[1765590824352,4.32504781,3082.4,3082.0,3.22406404]
[1765590824552,0.3715,3082.4,3082.0,3.22406404]
[1765590825086,0.3715,3082.4,3082.0,3.69436404]
[1765590825389,0.3715,3082.4,3082.1,2.76424065]
[1765590825680,0.3715,3082.4,3082.1,2.76214065]
[1765590825883,0.2674,3082.2,3082.1,2.76214065]
[1765590832384,0.3715,3082.4,3082.1,2.76214065]
[1765590835487,0.0916,3082.4,3082.1,2.76214065]
[1765590837364,0.3715,3082.4,3082.1,2.76214065]
[1765590837565,0.2674,3082.2,3082.1,2.76214065]
[1765590839985,0.3715,3082.4,3082.1,2.76214065]
[1765590840183,3.24404961,3082.6,3082.1,2.96124065]
[1765590840363,0.512,3082.5,3082.3,3.23524065]
[1765590841585,3.5237434,3082.8,3082.3,3.23524065]
[1765590841892,4.0357434,3082.8,3082.6,2.76424065]
[1765590842068,0.51121948,3082.7,3082.6,2.76424065]
[1765590842267,0.2674,3082.7,3082.6,2.76424065]
[1765590844188,3.51130955,3082.7,3082.4,2.76424065]
[1765590847196,0.2674,3082.7,3082.6,2.76424065]
[1765590847496,0.512,3082.9,3082.6,3.23524065]
[1765590847685,0.7919,3082.9,3082.6,3.23524065]
[1765590847882,0.7919,3082.9,3082.6,2.76424065]
[1765590849393,0.2799,3082.9,3082.6,2.76424065]
[1765590849698,0.7919,3082.9,3082.6,2.76424065]
[1765590849996,0.512,3082.9,3082.6,2.76424065]
[1765590850787,0.7919,3082.9,3082.6,2.76424065]
[1765590854685,0.2799,3082.9,3082.6,2.76424065]
[1765590854890,0.7919,3082.9,3082.6,2.76424065]
[1765590855484,0.2799,3082.9,3082.6,2.76424065]
[1765590855690,0.7919,3082.9,3082.6,2.76424065]
[1765590855902,0.7919,3082.9,3082.5,0.4643]
[1765590857002,0.512,3082.9,3082.5,0.4643]
[1765590860902,3.24366794,3083.0,3082.5,0.4643]
[1765590861206,0.512,3082.9,3082.5,0.4643]
[1765590862175,0.512,3082.9,3082.5,3.70841102]
[1765590863287,0.512,3082.9,3082.6,0.457]
[1765590863583,0.512,3082.9,3082.5,3.24411102]
[1765590863782,0.512,3082.9,3082.5,3.70111102]
[1765590866405,0.512,3082.9,3082.5,3.24411102]
[1765590866699,3.24366794,3083.0,3082.6,0.457]
[1765590866900,4.03556794,3083.0,3082.6,0.457]
[1765590867472,4.03556794,3083.0,3082.4,6.00747143]
[1765590867675,4.7634707,3083.0,3082.4,6.46447143]
[1765590868308,4.7634707,3083.0,3082.4,6.00747143]
[1765590868607,4.7634707,3083.0,3082.5,0.457]
[1765590871302,4.2514707,3083.0,3082.5,0.457]
[1765590871508,4.7634707,3083.0,3082.5,0.457]
[1765590875313,4.7634707,3083.0,3082.5,3.70110444]
[1765590875511,1.51980276,3083.0,3082.5,0.457]
[1765590875714,4.76343608,3083.0,3082.5,0.457]
[1765590878514,4.76343608,3083.0,3082.5,3.70111101]
[1765590878719,4.25143608,3083.0,3082.5,3.70111101]
[1765590878916,4.76343608,3083.0,3082.5,3.70111101]
[1765590879303,4.76343608,3083.0,3082.5,0.457]
[1765590880015,4.25143608,3083.0,3082.5,3.70110181]
[1765590880220,0.512,3083.0,3082.6,0.457]
[1765590880516,0.512,3083.0,3082.9,0.4915]
[1765590880902,3.24353767,3083.1,3082.9,0.4915]
[1765590881094,3.75553767,3083.1,3082.9,0.4915]
[1765590881310,0.2674,3083.0,3082.7,0.457]
[1765590883412,3.51100331,3083.0,3082.7,0.457]
[1765590883722,0.2674,3083.0,3082.7,0.457]
[1765590885419,3.51099506,3083.0,3082.7,0.457]
[1765590890228,3.51099506,3083.0,3082.6,0.457]
[1765590903520,0.001,3083.5,3082.9,0.454]
[1765590903721,0.001,3083.5,3083.1,2.76317527]
[1765590903921,0.001,3083.5,3083.2,0.4897]
[1765590905112,0.001,3083.5,3083.4,0.454]
[1765590918252,0.001,3083.5,3083.2,0.97381887]
[1765590918253,0.2684,3083.5,3083.2,0.97381887]
[1765590918452,0.513,3083.5,3083.0,2.76198273]
[1765590918657,0.513,3083.5,3083.2,0.4897]
[1765590925262,0.513,3083.5,3083.4,0.4551]
[1765590926344,0.513,3083.5,3083.4,0.9529]
[1765590926858,0.001,3083.5,3083.4,0.9529]
[1765590928539,0.001,3083.5,3083.4,4.19607312]
[1765590928739,0.001,3083.5,3083.4,6.19007351]
[1765590932366,0.001,3083.5,3083.4,2.94690039]
[1765590933971,0.001,3083.5,3083.4,6.19007351]
[1765590937365,0.001,3083.5,3083.4,2.94690039]
[1765590938072,0.001,3083.5,3083.4,6.19007351]
[1765590938377,0.001,3083.5,3083.4,2.94690039]
[1765590941774,0.001,3083.5,3083.4,6.19007351]
[1765590954185,0.001,3083.5,3083.4,8.95151236]
[1765590967798,0.3261,3083.9,3083.4,8.95151236]
[1765590969099,0.3261,3083.9,3083.4,12.19468548]
[1765590969893,0.3261,3083.9,3083.4,11.22086661]
[1765590970098,0.2761,3083.9,3083.4,11.22086661]
[1765590970434,0.2761,3083.9,3083.5,0.97377462]
[1765590970595,0.2761,3083.9,3083.5,1.43887462]
[1765590971102,0.512,3084.0,3083.5,3.70807742]
[1765590971401,0.512,3084.0,3083.6,0.512]
[1765590972309,0.6939,3084.1,3083.7,2.76143885]
[1765590972592,0.1819,3084.0,3083.7,2.76143885]
[1765590972894,0.1819,3083.8,3083.7,2.76143885]
[1765590973397,0.1819,3083.8,3083.5,6.00447819]
[1765590973694,0.1819,3083.8,3083.7,0.512]
[1765590974086,0.1319,3083.8,3083.7,0.512]
[1765590976294,0.0819,3083.8,3083.7,0.512]
[1765590979715,0.0819,3083.8,3083.7,3.7548576]
[1765590980213,0.0819,3083.8,3083.7,0.512]
[1765590980512,0.0319,3083.8,3083.7,0.512]
[1765590982931,0.0638,3084.0,3083.7,0.512]
[1765590983995,0.512,3084.1,3083.7,3.75485275]
[1765590984391,0.462,3084.1,3083.7,3.75485275]
[1765590984593,6.322,3084.2,3083.7,3.75485275]
[1765590984787,6.322,3084.2,3083.7,4.20685275]
[1765590984987,0.512,3084.1,3083.7,4.20685275]
[1765590986521,0.512,3084.1,3083.7,3.75485275]
[1765590986812,0.512,3084.1,3083.7,0.512]
[1765590987018,0.462,3084.1,3083.7,0.512]
[1765590987390,0.462,3084.1,3083.7,3.75484914]
[1765590987589,9.56434106,3084.2,3083.7,3.75484914]
[1765590987788,10.07634106,3084.2,3083.7,3.75484914]
[1765590988621,9.56434106,3084.2,3083.7,3.75484914]
[1765590988826,10.07634106,3084.2,3083.7,3.75484914]
[1765590989228,0.512,3084.1,3083.7,3.75484914]
[1765590989811,0.512,3084.1,3083.7,4.20684914]
[1765590990019,6.784,3084.2,3083.7,3.69484914]
[1765590990318,6.784,3084.2,3083.8,0.97371773]
[1765590990938,6.272,3084.2,3083.8,0.97371773]
[1765590991144,6.784,3084.2,3083.8,1.42571773]
[1765590991302,9.51434501,3084.2,3083.8,1.42571773]
[1765590991509,10.55709651,3084.2,3083.8,0.97371773]
[1765590998236,6.272,3084.2,3083.8,0.97371773]
[1765590998441,3.24326399,3084.3,3083.8,4.66845795]
[1765590998442,0.512,3084.1,3083.8,4.66845795]
[1765590998836,0.512,3084.1,3083.8,3.69474022]
[1765590999139,0.512,3084.1,3083.9,0.97368929]
[1765591000648,0.512,3084.2,3083.9,0.97368929]
[1765591001311,0.001,3084.3,3083.9,0.97368929]
[1765591001517,0.001,3084.3,3084.2,0.4606]
[1765591002115,0.001,3084.3,3084.2,1.4256]
[1765591003221,0.001,3084.3,3084.2,0.9736]
[1765591005342,0.001,3084.3,3084.2,4.21593188]
[1765591005542,0.001,3084.3,3084.2,5.70927027]
[1765591016457,0.001,3084.3,3084.2,5.25727027]
[1765591016825,0.001,3084.3,3084.2,0.513]
[1765591021350,0.001,3084.3,3084.2,4.21473188]
[1765591021552,0.001,3084.3,3084.2,4.69413188]
[1765591021772,0.001,3084.3,3084.2,4.21473188]